[Event "Live Chess"]
[Site "Chess.com"]
[Date "2024.06.02"]
[Round "-"]
[White "Queensandpawns"]
[Black "imchessive"]
[Result "1-0"]
[WhiteElo "2297"]
[BlackElo "1587"]
[TimeControl "300"]
[EndTime "7:07:14 PDT"]
[Termination "Queensandpawns won by resignation"]

1. e4 {[%clk 0:04:58.6]} 1... c5 {[%clk 0:04:59.1]} 2. d4 {[%clk 0:04:57.6]}
2... cxd4 {[%clk 0:04:57.8]} 3. c3 {[%clk 0:04:57.5]} 3... dxc3 {[%clk
0:04:56.8]} 4. Bc4 {[%clk 0:04:57.4]} 4... e6 {[%clk 0:04:56.7]} 5. Nf3 {[%clk
0:04:48.9]} 5... Qc7 {[%clk 0:04:55.4]} 6. Bb3 {[%clk 0:04:46.8]} 6... cxb2
{[%clk 0:04:48.3]} 7. Bxb2 {[%clk 0:04:46.7]} 7... Bb4+ {[%clk 0:04:47.6]} 8.
Kf1 {[%clk 0:04:45.2]} 8... f6 {[%clk 0:04:33.3]} 9. e5 {[%clk 0:04:43.3]} 9...
Nc6 {[%clk 0:04:16.1]} 10. exf6 {[%clk 0:04:40.8]} 10... Nxf6 {[%clk 0:04:16]}
11. a3 {[%clk 0:04:32.7]} 11... Bc5 {[%clk 0:03:54.4]} 12. Ng5 {[%clk
0:04:22.4]} 12... Qf4 {[%clk 0:03:35.1]} 13. Qd2 {[%clk 0:04:15]} 13... Qxd2
{[%clk 0:03:25.6]} 14. Nxd2 {[%clk 0:04:14.9]} 14... h6 {[%clk 0:03:20.6]} 15.
Nge4 {[%clk 0:04:10]} 15... Be7 {[%clk 0:03:16.6]} 16. Re1 {[%clk 0:04:06.3]}
16... d5 {[%clk 0:03:10.8]} 17. Nxf6+ {[%clk 0:04:04.2]} 17... gxf6 {[%clk
0:03:07.4]} 18. h4 {[%clk 0:04:01]} 18... Rg8 {[%clk 0:03:02.2]} 19. Rh3 {[%clk
0:03:51.6]} 19... Na5 {[%clk 0:02:40.2]} 20. Ba4+ {[%clk 0:03:48.2]} 20... Bd7
{[%clk 0:02:36]} 21. Bxd7+ {[%clk 0:03:40.9]} 21... Kxd7 {[%clk 0:02:35.9]} 22.
Rhe3 {[%clk 0:03:39.8]} 22... e5 {[%clk 0:02:28.6]} 23. Rd3 {[%clk 0:03:26.9]}
23... d4 {[%clk 0:02:20.4]} 24. Ne4 {[%clk 0:02:57]} 24... Nc4 {[%clk
0:02:16.7]} 25. Bxd4 {[%clk 0:02:48.8]} 25... exd4 {[%clk 0:02:11.2]} 26. Rxd4+
{[%clk 0:02:48.7]} 26... Nd6 {[%clk 0:02:08.2]} 27. Nxd6 {[%clk 0:02:41.7]}
27... Bxd6 {[%clk 0:02:06.5]} 28. Red1 {[%clk 0:02:41.4]} 28... Ke7 {[%clk
0:01:50.3]} 29. Rxd6 {[%clk 0:02:41.3]} 29... Rad8 {[%clk 0:01:48.4]} 30. Rxd8
{[%clk 0:02:24.9]} 30... Rxd8 {[%clk 0:01:48.3]} 31. Rxd8 {[%clk 0:02:24.3]}
31... Kxd8 {[%clk 0:01:48.1]} 32. Ke2 {[%clk 0:02:23.9]} 32... Kc7 {[%clk
0:01:47.7]} 33. Kd3 {[%clk 0:02:22]} 33... Kc6 {[%clk 0:01:46.6]} 34. Kc4 {[%clk
0:02:20.2]} 34... Kd6 {[%clk 0:01:39.5]} 35. Kd4 {[%clk 0:02:15.5]} 35... Ke6
{[%clk 0:01:37.4]} 36. Ke4 {[%clk 0:02:14.1]} 36... f5+ {[%clk 0:01:31.4]} 37.
Kf4 {[%clk 0:02:12.7]} 37... Kd5 {[%clk 0:01:29.3]} 38. Kxf5 {[%clk 0:02:11.6]}
38... Kc4 {[%clk 0:01:29.2]} 39. g4 {[%clk 0:02:10]} 39... Kb3 {[%clk
0:01:29.1]} 40. g5 {[%clk 0:02:09.7]} 40... hxg5 {[%clk 0:01:26.6]} 41. hxg5
{[%clk 0:02:09.3]} 41... Kxa3 {[%clk 0:01:26.5]} 42. g6 {[%clk 0:02:09]} 42...
b5 {[%clk 0:01:24.7]} 43. g7 {[%clk 0:02:08.9]} 43... b4 {[%clk 0:01:23.7]} 44.
g8=Q {[%clk 0:02:08.8]} 44... b3 {[%clk 0:01:22.6]} 45. Qa8 {[%clk 0:02:07.8]}
45... b2 {[%clk 0:01:19.6]} 46. Qxa7+ {[%clk 0:02:07.3]} 46... Kb3 {[%clk
0:01:19.4]} 47. Qb6+ {[%clk 0:02:06.8]} 47... Kc2 {[%clk 0:01:18.8]} 48. Kg5
{[%clk 0:02:05.4]} 1-0

[Event "Live Chess"]
[Site "Chess.com"]
[Date "2024.06.02"]
[Round "-"]
[White "jimwad"]
[Black "Grace6363"]
[Result "1-0"]
[WhiteElo "1334"]
[BlackElo "1139"]
[TimeControl "300"]
[EndTime "7:07:15 PDT"]
[Termination "jimwad won by resignation"]

1. d4 {[%clk 0:04:58.8]} 1... Nf6 {[%clk 0:04:57]} 2. c4 {[%clk 0:04:58]} 2...
g6 {[%clk 0:04:56.4]} 3. Nc3 {[%clk 0:04:57.2]} 3... d5 {[%clk 0:04:56]} 4. Nf3
{[%clk 0:04:53.2]} 4... Bg7 {[%clk 0:04:55.4]} 5. Bf4 {[%clk 0:04:51.3]} 5...
O-O {[%clk 0:04:47.9]} 6. e3 {[%clk 0:04:50.1]} 6... Nc6 {[%clk 0:04:46.4]} 7.
cxd5 {[%clk 0:04:48.5]} 7... Nxd5 {[%clk 0:04:45.3]} 8. Nxd5 {[%clk 0:04:46.8]}
8... Qxd5 {[%clk 0:04:44.5]} 9. Rc1 {[%clk 0:04:42.3]} 9... Bg4 {[%clk
0:04:38.4]} 10. Bc4 {[%clk 0:04:40.7]} 10... Qe4 {[%clk 0:04:35.2]} 11. Be2
{[%clk 0:04:36.6]} 11... Rad8 {[%clk 0:04:29.7]} 12. Bxc7 {[%clk 0:04:34.7]}
12... Rd7 {[%clk 0:04:28.6]} 13. Bg3 {[%clk 0:04:31.7]} 13... Nb4 {[%clk
0:04:21.3]} 14. O-O {[%clk 0:04:26.4]} 14... Rfd8 {[%clk 0:04:19.3]} 15. a3
{[%clk 0:04:17.3]} 15... Nd3 {[%clk 0:04:18.4]} 16. Qxd3 {[%clk 0:04:12.8]}
16... Qxd3 {[%clk 0:04:17]} 17. Bxd3 {[%clk 0:04:11.4]} 17... Bxf3 {[%clk
0:04:16.3]} 18. gxf3 {[%clk 0:04:10.2]} 18... Bh6 {[%clk 0:04:14.7]} 1-0

[Event "Live Chess"]
[Site "Chess.com"]
[Date "2024.06.02"]
[Round "-"]
[White "Mangoalo"]
[Black "TheSmoulderingMaster"]
[Result "0-1"]
[WhiteElo "1068"]
[BlackElo "1762"]
[TimeControl "300"]
[EndTime "7:07:17 PDT"]
[Termination "TheSmoulderingMaster won by resignation"]

1. e4 {[%clk 0:04:48.2]} 1... c5 {[%clk 0:04:58.3]} 2. Nf3 {[%clk 0:04:48.1]}
2... d6 {[%clk 0:04:56.4]} 3. d4 {[%clk 0:04:44.9]} 3... cxd4 {[%clk 0:04:55.4]}
4. Nxd4 {[%clk 0:04:44.8]} 4... Nf6 {[%clk 0:04:54.7]} 5. Nc3 {[%clk 0:04:44.7]}
5... g6 {[%clk 0:04:53.9]} 6. Bg5 {[%clk 0:04:43.3]} 6... Bg7 {[%clk 0:04:53.1]}
7. f3 {[%clk 0:04:42.4]} 7... O-O {[%clk 0:04:52.3]} 8. Bd3 {[%clk 0:04:40.6]}
8... Nc6 {[%clk 0:04:51.5]} 9. Nxc6 {[%clk 0:04:32.3]} 9... bxc6 {[%clk
0:04:50.2]} 10. O-O {[%clk 0:04:32.1]} 10... Qa5 {[%clk 0:04:48.2]} 11. Bd2
{[%clk 0:04:26]} 11... Qb6+ {[%clk 0:04:45.1]} 12. Kh1 {[%clk 0:04:21.5]} 12...
Qxb2 {[%clk 0:04:43.5]} 13. Rb1 {[%clk 0:04:17.7]} 13... Qa3 {[%clk 0:04:42.2]}
14. Rb3 {[%clk 0:04:14.4]} 14... Qa5 {[%clk 0:04:40.1]} 15. Nd5 {[%clk 0:04:05]}
15... Qxa2 {[%clk 0:04:35.9]} 16. Nxf6+ {[%clk 0:04:02.1]} 16... Bxf6 {[%clk
0:04:33.8]} 17. Bc4 {[%clk 0:03:57.5]} 17... d5 {[%clk 0:04:18.3]} 18. exd5
{[%clk 0:03:55]} 18... cxd5 {[%clk 0:04:17.6]} 19. Rb8 {[%clk 0:03:51.7]} 19...
Qxc4 {[%clk 0:04:09.2]} 20. Rxa8 {[%clk 0:03:48.7]} 20... Ba6 {[%clk 0:04:06.6]}
21. Re1 {[%clk 0:03:42.5]} 21... Rxa8 {[%clk 0:04:03.3]} 0-1

[Event "Live Chess"]
[Site "Chess.com"]
[Date "2024.06.02"]
[Round "-"]
[White "KeithArkell"]
[Black "MagnersCarlsberg2870"]
[Result "1-0"]
[WhiteElo "2425"]
[BlackElo "1784"]
[TimeControl "300"]
[EndTime "7:07:38 PDT"]
[Termination "KeithArkell won by checkmate"]

1. d4 {[%clk 0:04:57.5]} 1... Nf6 {[%clk 0:04:58.4]} 2. Nf3 {[%clk 0:04:56.9]}
2... c5 {[%clk 0:04:48]} 3. d5 {[%clk 0:04:53.3]} 3... d6 {[%clk 0:04:46.6]} 4.
Nc3 {[%clk 0:04:52.7]} 4... g6 {[%clk 0:04:44.1]} 5. e4 {[%clk 0:04:52.3]} 5...
Nbd7 {[%clk 0:04:39.8]} 6. Bb5 {[%clk 0:04:51.7]} 6... a6 {[%clk 0:04:38.3]} 7.
Bxd7+ {[%clk 0:04:50.3]} 7... Bxd7 {[%clk 0:04:36.9]} 8. h3 {[%clk 0:04:49.8]}
8... Bg7 {[%clk 0:04:35.1]} 9. a4 {[%clk 0:04:48.9]} 9... Rb8 {[%clk 0:04:33.1]}
10. a5 {[%clk 0:04:47.8]} 10... O-O {[%clk 0:04:27.2]} 11. O-O {[%clk
0:04:46.8]} 11... Ne8 {[%clk 0:04:16]} 12. Re1 {[%clk 0:04:45.5]} 12... f5
{[%clk 0:04:14.6]} 13. e5 {[%clk 0:04:43.7]} 13... dxe5 {[%clk 0:04:02.8]} 14.
Nxe5 {[%clk 0:04:43.6]} 14... b6 {[%clk 0:03:38.3]} 15. axb6 {[%clk 0:04:40.3]}
15... Rxb6 {[%clk 0:03:32.7]} 16. Qe2 {[%clk 0:04:37.1]} 16... Bb5 {[%clk
0:02:49.1]} 17. Nxb5 {[%clk 0:04:35.1]} 17... axb5 {[%clk 0:02:48.1]} 18. Nc6
{[%clk 0:04:33.3]} 18... Rxc6 {[%clk 0:02:40]} 19. dxc6 {[%clk 0:04:27.3]} 19...
e5 {[%clk 0:02:39.1]} 20. Be3 {[%clk 0:04:24.3]} 20... Qb6 {[%clk 0:02:20.4]}
21. b4 {[%clk 0:04:22.9]} 21... Qxc6 {[%clk 0:02:11.6]} 22. Bxc5 {[%clk
0:04:21.6]} 22... Rf7 {[%clk 0:01:47.6]} 23. Qd2 {[%clk 0:04:18.7]} 23... e4
{[%clk 0:01:33]} 24. Ra7 {[%clk 0:04:13.7]} 24... Rxa7 {[%clk 0:01:28.6]} 25.
Bxa7 {[%clk 0:04:12.5]} 25... Bc3 {[%clk 0:01:27.6]} 26. Qe2 {[%clk 0:04:10.2]}
26... Bxe1 {[%clk 0:01:26.1]} 27. Qxe1 {[%clk 0:04:09.6]} 27... Nd6 {[%clk
0:01:20.8]} 28. Bc5 {[%clk 0:04:07.6]} 28... Nc4 {[%clk 0:01:16.7]} 29. Qa1
{[%clk 0:04:05.7]} 29... Qd5 {[%clk 0:01:03.5]} 30. Qf6 {[%clk 0:03:56.5]} 30...
Qd1+ {[%clk 0:01:00.4]} 31. Kh2 {[%clk 0:03:55.4]} 31... Nd2 {[%clk 0:00:43.7]}
32. Qf8# {[%clk 0:03:52.4]} 1-0

[Event "Live Chess"]
[Site "Chess.com"]
[Date "2024.06.02"]
[Round "-"]
[White "nigelst"]
[Black "Plimsol"]
[Result "0-1"]
[WhiteElo "1724"]
[BlackElo "2356"]
[TimeControl "300"]
[EndTime "7:07:40 PDT"]
[Termination "Plimsol won by resignation"]

1. e4 {[%clk 0:04:47.7]} 1... e6 {[%clk 0:04:59.2]} 2. d4 {[%clk 0:04:44.5]}
2... d5 {[%clk 0:04:58.4]} 3. exd5 {[%clk 0:04:43.5]} 3... exd5 {[%clk
0:04:57.7]} 4. Nf3 {[%clk 0:04:42.9]} 4... Nc6 {[%clk 0:04:56.7]} 5. Bb5 {[%clk
0:04:40.6]} 5... Bd6 {[%clk 0:04:55.1]} 6. O-O {[%clk 0:04:38.6]} 6... Ne7
{[%clk 0:04:53.8]} 7. Re1 {[%clk 0:04:35.8]} 7... O-O {[%clk 0:04:52.2]} 8. Ne5
{[%clk 0:04:30.5]} 8... f6 {[%clk 0:04:44.7]} 9. Bxc6 {[%clk 0:04:22.6]} 9...
bxc6 {[%clk 0:04:42.6]} 10. Nf3 {[%clk 0:04:19.1]} 10... Bg4 {[%clk 0:04:41.5]}
11. h3 {[%clk 0:04:16.9]} 11... Bh5 {[%clk 0:04:40.5]} 12. Be3 {[%clk
0:04:15.1]} 12... Qd7 {[%clk 0:04:39.6]} 13. Nbd2 {[%clk 0:04:12.9]} 13... Rae8
{[%clk 0:04:38.5]} 14. Nf1 {[%clk 0:04:10.3]} 14... Nf5 {[%clk 0:04:35.7]} 15.
g4 {[%clk 0:04:04.8]} 15... Nxe3 {[%clk 0:04:34.1]} 16. Nxe3 {[%clk 0:03:59.5]}
16... Bg6 {[%clk 0:04:32]} 17. Nh4 {[%clk 0:03:51.9]} 17... Rb8 {[%clk
0:04:14.3]} 18. b3 {[%clk 0:03:46.1]} 18... Rfe8 {[%clk 0:04:13.5]} 19. Nhf5
{[%clk 0:03:44]} 19... Bb4 {[%clk 0:04:11.8]} 20. Rf1 {[%clk 0:03:39]} 20... h5
{[%clk 0:04:04.6]} 21. a3 {[%clk 0:03:29.5]} 21... Bf8 {[%clk 0:03:58.2]} 22. c4
{[%clk 0:03:23.2]} 22... hxg4 {[%clk 0:03:54.3]} 23. hxg4 {[%clk 0:03:19.6]}
23... Re4 {[%clk 0:03:47.5]} 24. Qf3 {[%clk 0:03:12.6]} 24... Rxb3 {[%clk
0:03:44.5]} 25. Rae1 {[%clk 0:03:02.7]} 25... Bxf5 {[%clk 0:03:38.6]} 26. Qxf5
{[%clk 0:02:57.5]} 26... Qxf5 {[%clk 0:03:31.8]} 27. gxf5 {[%clk 0:02:54]} 27...
Rxd4 {[%clk 0:03:27.8]} 28. f3 {[%clk 0:02:46.2]} 28... Rd2 {[%clk 0:03:18.4]}
29. cxd5 {[%clk 0:02:40.8]} 29... Rxe3 {[%clk 0:03:07.4]} 30. Rxe3 {[%clk
0:02:37.2]} 30... Bc5 {[%clk 0:03:06.4]} 31. Re1 {[%clk 0:02:35.9]} 31... cxd5
{[%clk 0:03:05]} 32. Kf1 {[%clk 0:02:27.9]} 32... Bxe3 {[%clk 0:03:04.1]} 33.
Rxe3 {[%clk 0:02:24.5]} 33... Kf7 {[%clk 0:03:03.6]} 34. Rc3 {[%clk 0:02:22.1]}
34... Ke7 {[%clk 0:02:50.1]} 35. Rxc7+ {[%clk 0:02:19.3]} 35... Kd6 {[%clk
0:02:49.2]} 36. Rxg7 {[%clk 0:02:15.2]} 36... Ke5 {[%clk 0:02:42]} 37. Rxa7
{[%clk 0:02:12.2]} 37... Kxf5 {[%clk 0:02:41]} 38. Ke1 {[%clk 0:02:09.7]} 38...
Ra2 {[%clk 0:02:39.6]} 39. Ra4 {[%clk 0:02:04.5]} 39... Ke5 {[%clk 0:02:37.9]}
40. f4+ {[%clk 0:01:55.5]} 40... Kf5 {[%clk 0:02:36.3]} 41. Rd4 {[%clk 0:01:51]}
41... Ke6 {[%clk 0:02:33.4]} 42. a4 {[%clk 0:01:49.1]} 42... Kd6 {[%clk
0:02:31.2]} 43. Rb4 {[%clk 0:01:41.9]} 43... Kc5 {[%clk 0:02:14.9]} 44. Rb5+
{[%clk 0:01:38.1]} 44... Kd4 {[%clk 0:02:14]} 45. Rb6 {[%clk 0:01:34]} 45... f5
{[%clk 0:02:12.6]} 46. Rb4+ {[%clk 0:01:29.9]} 46... Ke3 {[%clk 0:02:10]} 47.
Kd1 {[%clk 0:01:28.7]} 47... d4 {[%clk 0:02:07.8]} 48. Kc1 {[%clk 0:01:23.5]}
48... d3 {[%clk 0:02:06.6]} 49. Kb1 {[%clk 0:01:16.4]} 49... d2 {[%clk
0:01:56.3]} 50. Kxa2 {[%clk 0:01:12.2]} 50... d1=Q {[%clk 0:01:55.1]} 51. Rb3+
{[%clk 0:01:09.8]} 51... Kxf4 {[%clk 0:01:51.3]} 52. a5 {[%clk 0:01:07.7]} 52...
Qc2+ {[%clk 0:01:47.8]} 53. Ka3 {[%clk 0:01:03.8]} 53... Qc5+ {[%clk 0:01:46.2]}
54. Ka4 {[%clk 0:01:01.6]} 54... Qc6+ {[%clk 0:01:39.5]} 55. Ka3 {[%clk
0:00:57.4]} 55... Kg4 {[%clk 0:01:36.7]} 56. Rb4+ {[%clk 0:00:55.5]} 56... f4
{[%clk 0:01:35.5]} 57. Ra4 {[%clk 0:00:53.6]} 57... Qxa4+ {[%clk 0:01:13.7]} 58.
Kxa4 {[%clk 0:00:51.2]} 58... f3 {[%clk 0:01:13]} 59. a6 {[%clk 0:00:50.3]}
59... f2 {[%clk 0:01:12.6]} 60. a7 {[%clk 0:00:49.5]} 60... f1=Q {[%clk
0:01:12.2]} 61. a8=Q {[%clk 0:00:46.5]} 61... Qa1+ {[%clk 0:01:10.6]} 0-1

[Event "Live Chess"]
[Site "Chess.com"]
[Date "2024.06.02"]
[Round "-"]
[White "nitrofish07"]
[Black "resipsa6"]
[Result "1-0"]
[WhiteElo "2079"]
[BlackElo "2027"]
[TimeControl "300"]
[EndTime "7:08:01 PDT"]
[Termination "nitrofish07 won by resignation"]

1. d4 {[%clk 0:04:59.3]} 1... d5 {[%clk 0:04:56.4]} 2. c4 {[%clk 0:04:58.1]}
2... dxc4 {[%clk 0:04:55.6]} 3. Nf3 {[%clk 0:04:55.1]} 3... Nf6 {[%clk
0:04:54.6]} 4. e3 {[%clk 0:04:53.8]} 4... g6 {[%clk 0:04:54.2]} 5. Bxc4 {[%clk
0:04:52.8]} 5... Bg7 {[%clk 0:04:53.7]} 6. O-O {[%clk 0:04:51.3]} 6... O-O
{[%clk 0:04:53.2]} 7. Nc3 {[%clk 0:04:50.4]} 7... c6 {[%clk 0:04:52.5]} 8. b3
{[%clk 0:04:49.3]} 8... Nbd7 {[%clk 0:04:51.9]} 9. Bb2 {[%clk 0:04:48.3]} 9...
Nb6 {[%clk 0:04:51.6]} 10. Qe2 {[%clk 0:04:43.8]} 10... Nxc4 {[%clk 0:04:50.9]}
11. bxc4 {[%clk 0:04:43.7]} 11... Bg4 {[%clk 0:04:48.5]} 12. h3 {[%clk
0:04:42.8]} 12... Bxf3 {[%clk 0:04:47.7]} 13. Qxf3 {[%clk 0:04:42.7]} 13... Qd7
{[%clk 0:04:47.2]} 14. Rab1 {[%clk 0:04:41.4]} 14... Rab8 {[%clk 0:04:46.6]} 15.
Ba3 {[%clk 0:04:40.3]} 15... Rfe8 {[%clk 0:04:45.2]} 16. Rfd1 {[%clk 0:04:39.1]}
16... b5 {[%clk 0:04:42.9]} 17. cxb5 {[%clk 0:04:35.9]} 17... cxb5 {[%clk
0:04:41.5]} 18. Ne4 {[%clk 0:04:33.2]} 18... Nxe4 {[%clk 0:04:40.1]} 19. Qxe4
{[%clk 0:04:33.1]} 19... a5 {[%clk 0:04:37.6]} 20. Bc5 {[%clk 0:04:28.6]} 20...
b4 {[%clk 0:04:32.7]} 21. Qc2 {[%clk 0:04:27.2]} 21... e5 {[%clk 0:04:28.4]} 22.
dxe5 {[%clk 0:04:24.9]} 22... Bxe5 {[%clk 0:04:26.5]} 23. Rxd7 {[%clk
0:04:23.6]} 1-0

[Event "Live Chess"]
[Site "Chess.com"]
[Date "2024.06.02"]
[Round "-"]
[White "wadsy27"]
[Black "Pablo_dmp"]
[Result "1-0"]
[WhiteElo "2593"]
[BlackElo "1982"]
[TimeControl "300"]
[EndTime "7:08:23 PDT"]
[Termination "wadsy27 won on time"]

1. Nf3 {[%clk 0:04:56.4]} 1... d5 {[%clk 0:04:58.5]} 2. g3 {[%clk 0:04:56]} 2...
Nf6 {[%clk 0:04:57.7]} 3. Bg2 {[%clk 0:04:55.6]} 3... Bf5 {[%clk 0:04:56.8]} 4.
c4 {[%clk 0:04:54.2]} 4... e6 {[%clk 0:04:54.3]} 5. Qb3 {[%clk 0:04:52.2]} 5...
Qc8 {[%clk 0:04:52.6]} 6. O-O {[%clk 0:04:50.4]} 6... Be7 {[%clk 0:04:50.6]} 7.
cxd5 {[%clk 0:04:45.9]} 7... exd5 {[%clk 0:04:48.6]} 8. Nc3 {[%clk 0:04:45.5]}
8... c6 {[%clk 0:04:44]} 9. d3 {[%clk 0:04:44.3]} 9... h6 {[%clk 0:04:34.9]} 10.
e4 {[%clk 0:04:42.5]} 10... Be6 {[%clk 0:04:31.6]} 11. Nd4 {[%clk 0:04:38.2]}
11... O-O {[%clk 0:04:24.2]} 12. exd5 {[%clk 0:04:29.1]} 12... Nxd5 {[%clk
0:04:21.3]} 13. Nxd5 {[%clk 0:04:26.5]} 13... cxd5 {[%clk 0:04:14.4]} 14. Re1
{[%clk 0:04:23.8]} 14... Bf6 {[%clk 0:04:10.9]} 15. Nxe6 {[%clk 0:04:18.3]}
15... fxe6 {[%clk 0:04:10.8]} 16. Rxe6 {[%clk 0:04:16.5]} 16... Kh8 {[%clk
0:03:52.3]} 17. Bxd5 {[%clk 0:04:14.4]} 17... Nc6 {[%clk 0:03:48.5]} 18. Bxc6
{[%clk 0:04:06.3]} 18... bxc6 {[%clk 0:03:43.4]} 19. Bf4 {[%clk 0:04:05.8]}
19... Bd4 {[%clk 0:03:34.7]} 20. Rc1 {[%clk 0:03:53.3]} 20... c5 {[%clk
0:03:04.6]} 21. Qd5 {[%clk 0:03:49.7]} 21... Rd8 {[%clk 0:02:43.7]} 22. Qe4
{[%clk 0:03:47.7]} 22... Qd7 {[%clk 0:02:36.9]} 23. b3 {[%clk 0:03:27.4]} 23...
Re8 {[%clk 0:02:29.4]} 24. Re1 {[%clk 0:03:21.7]} 24... Rf8 {[%clk 0:02:26]} 25.
Be5 {[%clk 0:03:09.6]} 25... Bxf2+ {[%clk 0:02:18.8]} 26. Kg2 {[%clk 0:03:03.9]}
26... Bxe1 {[%clk 0:02:15.6]} 27. Rxh6+ {[%clk 0:03:02.3]} 27... Kg8 {[%clk
0:02:11.8]} 28. Qh7+ {[%clk 0:03:01]} 28... Kf7 {[%clk 0:02:08.7]} 29. Rf6+
{[%clk 0:02:36]} 29... Ke8 {[%clk 0:02:08.6]} 30. Rxf8+ {[%clk 0:02:27.8]} 30...
Kxf8 {[%clk 0:01:56]} 31. Qh8+ {[%clk 0:02:25.3]} 31... Ke7 {[%clk 0:01:49.1]}
32. Qxa8 {[%clk 0:02:18.6]} 32... Qxd3 {[%clk 0:01:28.3]} 33. Qf3 {[%clk
0:01:34.9]} 33... Qc2+ {[%clk 0:01:21.4]} 34. Kf1 {[%clk 0:01:18.9]} 34... Bb4
{[%clk 0:00:57]} 35. Qe2 {[%clk 0:01:13.2]} 35... Qb1+ {[%clk 0:00:30.1]} 36.
Kg2 {[%clk 0:01:11.1]} 36... Kf7 {[%clk 0:00:23.7]} 37. Qf1+ {[%clk 0:01:08.8]}
37... Qxf1+ {[%clk 0:00:21.5]} 38. Kxf1 {[%clk 0:01:08.7]} 38... g6 {[%clk
0:00:18.7]} 39. Ke2 {[%clk 0:01:06.7]} 39... a6 {[%clk 0:00:17.1]} 40. Kd3
{[%clk 0:01:05.3]} 40... Ke7 {[%clk 0:00:16.4]} 41. Kc4 {[%clk 0:01:04]} 41...
Ke6 {[%clk 0:00:10.8]} 42. Bf4 {[%clk 0:01:00.7]} 42... a5 {[%clk 0:00:09.8]}
43. Be3 {[%clk 0:00:56.7]} 43... Ke5 {[%clk 0:00:08.3]} 44. Bxc5 {[%clk
0:00:54.3]} 44... Be1 {[%clk 0:00:06.6]} 45. b4 {[%clk 0:00:52.4]} 45... axb4
{[%clk 0:00:05.7]} 46. Bxb4 {[%clk 0:00:52.3]} 46... Bf2 {[%clk 0:00:04.3]} 47.
a4 {[%clk 0:00:50.8]} 47... Bg1 {[%clk 0:00:02.9]} 48. h3 {[%clk 0:00:49.8]}
48... Ke4 {[%clk 0:00:01.3]} 49. Bc5 {[%clk 0:00:47.9]} 1-0

[Event "Live Chess"]
[Site "Chess.com"]
[Date "2024.06.02"]
[Round "-"]
[White "Crowded_House"]
[Black "bonantagulo"]
[Result "0-1"]
[WhiteElo "1637"]
[BlackElo "2224"]
[TimeControl "300"]
[EndTime "7:08:35 PDT"]
[Termination "bonantagulo won by resignation"]

1. d4 {[%clk 0:04:56.9]} 1... Nf6 {[%clk 0:04:59.1]} 2. Bg5 {[%clk 0:04:56.3]}
2... Ne4 {[%clk 0:04:58.1]} 3. Bh4 {[%clk 0:04:54.8]} 3... c5 {[%clk 0:04:57]}
4. c3 {[%clk 0:04:47.5]} 4... g5 {[%clk 0:04:28.6]} 5. Bg3 {[%clk 0:04:45.7]}
5... Bg7 {[%clk 0:04:25.7]} 6. Nd2 {[%clk 0:04:42.7]} 6... Nxg3 {[%clk
0:04:14.4]} 7. hxg3 {[%clk 0:04:40.6]} 7... cxd4 {[%clk 0:04:14.3]} 8. cxd4
{[%clk 0:04:34.9]} 8... Bxd4 {[%clk 0:04:14.2]} 9. Rb1 {[%clk 0:04:28.3]} 9...
Nc6 {[%clk 0:03:27]} 10. e3 {[%clk 0:04:26.7]} 10... Bg7 {[%clk 0:03:17.4]} 11.
a3 {[%clk 0:04:21.9]} 11... d5 {[%clk 0:03:09.9]} 12. Bb5 {[%clk 0:04:19.2]}
12... Qb6 {[%clk 0:03:01.1]} 13. Bxc6+ {[%clk 0:04:10.6]} 13... bxc6 {[%clk
0:02:58.7]} 14. Qc2 {[%clk 0:03:53.3]} 14... Bg4 {[%clk 0:02:31.1]} 15. Ngf3
{[%clk 0:03:49.3]} 15... h6 {[%clk 0:02:28.4]} 16. O-O {[%clk 0:03:47.9]} 16...
O-O {[%clk 0:02:23.6]} 17. b4 {[%clk 0:03:40.8]} 17... Rfc8 {[%clk 0:02:08.1]}
18. Rbc1 {[%clk 0:03:38.9]} 18... a5 {[%clk 0:02:06.2]} 19. Qc5 {[%clk
0:03:30.4]} 19... Qxc5 {[%clk 0:01:58.5]} 20. bxc5 {[%clk 0:03:24.2]} 20... Rcb8
{[%clk 0:01:49.3]} 21. Nd4 {[%clk 0:03:22.4]} 21... Bxd4 {[%clk 0:01:39.5]} 22.
exd4 {[%clk 0:03:21.1]} 22... Rb2 {[%clk 0:01:39]} 23. Nf3 {[%clk 0:03:14]}
23... Bxf3 {[%clk 0:01:37.9]} 24. gxf3 {[%clk 0:03:12.6]} 24... Rab8 {[%clk
0:01:37]} 25. Ra1 {[%clk 0:03:02.1]} 25... a4 {[%clk 0:01:34.3]} 26. Kg2 {[%clk
0:03:00.6]} 26... R8b3 {[%clk 0:01:33.3]} 27. f4 {[%clk 0:02:52.9]} 27... gxf4
{[%clk 0:01:32.2]} 28. gxf4 {[%clk 0:02:51.8]} 28... Rd3 {[%clk 0:01:31.8]} 29.
Rfd1 {[%clk 0:02:42.3]} 29... Rbb3 {[%clk 0:01:31.1]} 30. Rxd3 {[%clk 0:02:25]}
30... Rxd3 {[%clk 0:01:31]} 31. Ra2 {[%clk 0:02:17.6]} 31... Rxd4 {[%clk
0:01:29.9]} 32. Kf3 {[%clk 0:02:16.3]} 32... Rc4 {[%clk 0:01:29]} 33. Rb2 {[%clk
0:02:10]} 33... Rxc5 {[%clk 0:01:28.3]} 34. Rb4 {[%clk 0:02:09.1]} 34... Rc3+
{[%clk 0:01:27.2]} 35. Ke2 {[%clk 0:02:06.5]} 35... Rxa3 {[%clk 0:01:27.1]} 36.
Rb6 {[%clk 0:02:05.4]} 36... c5 {[%clk 0:01:23.5]} 37. Rb5 {[%clk 0:02:03.5]}
37... Rc3 {[%clk 0:01:21.9]} 38. Kd2 {[%clk 0:01:59]} 38... d4 {[%clk
0:01:20.7]} 39. Rb7 {[%clk 0:01:54.4]} 39... e6 {[%clk 0:01:19.3]} 40. Rb8+
{[%clk 0:01:52.8]} 40... Kg7 {[%clk 0:01:18.5]} 41. Ra8 {[%clk 0:01:49.6]} 41...
a3 {[%clk 0:01:18]} 42. Ra4 {[%clk 0:01:47.9]} 42... Rf3 {[%clk 0:01:15.9]} 43.
Ke2 {[%clk 0:01:46.4]} 43... Rxf4 {[%clk 0:01:14.1]} 44. Rxa3 {[%clk 0:01:44.2]}
44... c4 {[%clk 0:01:13.3]} 45. Rg3+ {[%clk 0:01:42.7]} 45... Kf6 {[%clk
0:01:12]} 46. Rh3 {[%clk 0:01:39.8]} 46... Kg5 {[%clk 0:01:09.5]} 47. Rg3+
{[%clk 0:01:38.5]} 47... Rg4 {[%clk 0:01:08.9]} 48. Rf3 {[%clk 0:01:35.3]} 48...
e5 {[%clk 0:01:07.3]} 49. Rxf7 {[%clk 0:01:34]} 49... c3 {[%clk 0:01:03.7]} 50.
Rg7+ {[%clk 0:01:31.2]} 50... Kh4 {[%clk 0:01:02.9]} 51. Rc7 {[%clk 0:01:28.7]}
51... Rg1 {[%clk 0:00:58.4]} 52. Rh7 {[%clk 0:01:18.1]} 52... h5 {[%clk
0:00:57.2]} 53. Re7 {[%clk 0:01:15.5]} 53... c2 {[%clk 0:00:54.2]} 54. Rc7
{[%clk 0:01:14.5]} 54... c1=Q {[%clk 0:00:52.3]} 55. Rxc1 {[%clk 0:01:14.1]}
55... Rxc1 {[%clk 0:00:52.1]} 56. Kd3 {[%clk 0:01:13.1]} 56... Rf1 {[%clk
0:00:50.9]} 57. f3 {[%clk 0:01:13]} 57... Rxf3+ {[%clk 0:00:49.2]} 0-1